[Event "FIDE World Rapid Chess Championship 2021"]
[White "Paravyan, David"]
[Black "Mastrovasilis, Dimitrios"]
[WhiteFideId "4194985"]
[BlackFideId "4202694"]
[WhiteElo "2671"]
[BlackElo "2534"]
[Result "1-0"]
[Round "05"]
[TimeControl "900+10"]
[Date "2021.12.26"]
[WhiteClock "0:03:24"]
[BlackClock "0:00:22"]

1. e4 {[%clk 0:03:24]}  e5 {[%clk 0:00:22]} 2. Nf3 {[%clk 0:03:24]}  Nc6 {[%clk 0:00:22]} 3. Nc3 {[%clk 0:03:24]}  Nf6 {[%clk 0:00:22]} 4. d4 {[%clk 0:03:24]}  exd4 {[%clk 0:00:22]} 5. Nxd4 {[%clk 0:03:24]}  Bb4 {[%clk 0:00:22]} 6. Nxc6 {[%clk 0:03:24]}  bxc6 {[%clk 0:00:22]} 7. Bd3 {[%clk 0:03:24]}  d5 {[%clk 0:00:22]} 8. exd5 {[%clk 0:03:24]}  O-O {[%clk 0:00:22]} 9. O-O {[%clk 0:03:24]}  cxd5 {[%clk 0:00:22]} 10. Bg5 {[%clk 0:03:24]}  c6 {[%clk 0:00:22]} 11. Qf3 {[%clk 0:03:24]}  Bd6 {[%clk 0:00:22]} 12. h3 {[%clk 0:03:24]}  Rb8 {[%clk 0:00:22]} 13. b3 {[%clk 0:03:24]}  Be5 {[%clk 0:00:22]} 14. Bf4 {[%clk 0:03:24]}  Bxc3 {[%clk 0:00:22]} 15. Bxb8 {[%clk 0:03:24]}  Bxa1 {[%clk 0:00:22]} 16. Rxa1 {[%clk 0:03:24]}  Bg4 {[%clk 0:00:22]} 17. hxg4 {[%clk 0:03:24]}  Qxb8 {[%clk 0:00:22]} 18. Re1 {[%clk 0:03:24]}  h6 {[%clk 0:00:22]} 19. g3 {[%clk 0:03:24]}  Re8 {[%clk 0:00:22]} 20. Rxe8+ {[%clk 0:03:24]}  Qxe8 {[%clk 0:00:22]} 21. Qf4 {[%clk 0:03:24]}  Qd8 {[%clk 0:00:22]} 22. b4 {[%clk 0:03:24]}  Kf8 {[%clk 0:00:22]} 23. a4 {[%clk 0:03:24]}  Ne8 {[%clk 0:00:22]} 24. a5 {[%clk 0:03:24]}  Qe7 {[%clk 0:00:22]} 25. Kf1 {[%clk 0:03:24]}  Nc7 {[%clk 0:00:22]} 26. Bf5 {[%clk 0:03:24]}  Ke8 {[%clk 0:00:22]} 27. Qd4 {[%clk 0:03:24]}  Ne6 {[%clk 0:00:22]} 28. Qc3 {[%clk 0:03:24]}  Kd7 {[%clk 0:00:22]} 29. Qxg7 {[%clk 0:03:24]}  Kc7 {[%clk 0:00:22]} 30. Qxh6 {[%clk 0:03:24]}  Qxb4 {[%clk 0:00:22]} 31. Qf6 {[%clk 0:03:24]}  Nd8 {[%clk 0:00:22]} 32. Qe5+ {[%clk 0:03:24]}  Qd6 {[%clk 0:00:22]} 33. Qe8 {[%clk 0:03:24]}  Kb7 {[%clk 0:00:22]} 34. g5 {[%clk 0:03:24]}  Ka6 {[%clk 0:00:22]} 35. Qe1 {[%clk 0:03:24]}  c5 {[%clk 0:00:22]} 36. Bc8+ {[%clk 0:03:24]}  Kb5 {[%clk 0:00:22]} 37. a6 {[%clk 0:03:24]}  c4 {[%clk 0:00:22]} 38. Qb1+ {[%clk 0:03:24]}  Qb4 {[%clk 0:00:22]} 39. Bd7+ {[%clk 0:03:24]}  Kc5 {[%clk 0:00:22]} 40. Qxb4+ {[%clk 0:03:24]}  Kxb4 {[%clk 0:00:22]} 41. f4 {[%clk 0:03:24]}  d4 {[%clk 0:00:22]} 42. Ke1 {[%clk 0:03:24]}  Kc3 {[%clk 0:00:22]} 43. Kd1 {[%clk 0:03:24]}  Kb2 {[%clk 0:00:22]} 44. Kd2 {[%clk 0:03:24]}  d3 {[%clk 0:00:22]} 45. c3 {[%clk 0:03:24]} 1-0


[Site "http://www.Chess.com"]

[Event "FIDE World Rapid Chess Championship 2021"]
[White "Demchenko, Anton"]
[Black "Narayanan.S.L, "]
[WhiteFideId "4160258"]
[BlackFideId "5058422"]
[WhiteElo "2666"]
[BlackElo "2482"]
[Result "1/2-1/2"]
[Round "05"]
[TimeControl "900+10"]
[Date "2021.12.26"]
[WhiteClock "0:00:00"]
[BlackClock "0:02:52"]

1. e4 {[%clk 0:00:00]}  e5 {[%clk 0:02:52]} 2. Nf3 {[%clk 0:00:00]}  Nc6 {[%clk 0:02:52]} 3. Bc4 {[%clk 0:00:00]}  Bc5 {[%clk 0:02:52]} 4. d3 {[%clk 0:00:00]}  Nf6 {[%clk 0:02:52]} 5. Nc3 {[%clk 0:00:00]}  h6 {[%clk 0:02:52]} 6. O-O {[%clk 0:00:00]}  O-O {[%clk 0:02:52]} 7. h3 {[%clk 0:00:00]}  a6 {[%clk 0:02:52]} 8. Be3 {[%clk 0:00:00]}  d6 {[%clk 0:02:52]} 9. Bxc5 {[%clk 0:00:00]}  dxc5 {[%clk 0:02:52]} 10. a4 {[%clk 0:00:00]}  Qd6 {[%clk 0:02:52]} 11. Nd2 {[%clk 0:00:00]}  Nd4 {[%clk 0:02:52]} 12. Ne2 {[%clk 0:00:00]}  Re8 {[%clk 0:02:52]} 13. Ng3 {[%clk 0:00:00]}  Bd7 {[%clk 0:02:52]} 14. c3 {[%clk 0:00:00]}  Nc6 {[%clk 0:02:52]} 15. a5 {[%clk 0:00:00]}  Ne7 {[%clk 0:02:52]} 16. Qf3 {[%clk 0:00:00]}  Be6 {[%clk 0:02:52]} 17. Bxe6 {[%clk 0:00:00]}  Qxe6 {[%clk 0:02:52]} 18. Qe3 {[%clk 0:00:00]}  Rad8 {[%clk 0:02:52]} 19. Rfd1 {[%clk 0:00:00]}  Ng6 {[%clk 0:02:52]} 20. Nf3 {[%clk 0:00:00]}  c4 {[%clk 0:02:52]} 21. d4 {[%clk 0:00:00]}  exd4 {[%clk 0:02:52]} 22. Nxd4 {[%clk 0:00:00]}  Qe5 {[%clk 0:02:52]} 23. Re1 {[%clk 0:00:00]}  Qf4 {[%clk 0:02:52]} 24. Ra4 {[%clk 0:00:00]}  Qxe3 {[%clk 0:02:52]} 25. Rxe3 {[%clk 0:00:00]}  c5 {[%clk 0:02:52]} 26. Nf3 {[%clk 0:00:00]}  Rd1+ {[%clk 0:02:52]} 27. Kh2 {[%clk 0:00:00]}  Rb1 {[%clk 0:02:52]} 28. Ra2 {[%clk 0:00:00]}  Rd8 {[%clk 0:02:52]} 29. e5 {[%clk 0:00:00]}  Nd5 {[%clk 0:02:52]} 30. Re4 {[%clk 0:00:00]}  Ndf4 {[%clk 0:02:52]} 31. Rxc4 {[%clk 0:00:00]}  Nd3 {[%clk 0:02:52]} 32. b3 {[%clk 0:00:00]} 1/2-1/2


[Site "http://www.Chess.com"]

[Event "FIDE World Rapid Chess Championship 2021"]
[White "Michalik, Peter"]
[Black "Matlakov, Maxim"]
[WhiteFideId "14907526"]
[BlackFideId "4168003"]
[WhiteElo "2515"]
[BlackElo "2652"]
[Result "0-1"]
[Round "05"]
[TimeControl "900+10"]
[Date "2021.12.26"]
[WhiteClock "0:00:57"]
[BlackClock "0:00:57"]

1. d4 {[%clk 0:00:57]}  Nf6 {[%clk 0:00:57]} 2. c4 {[%clk 0:00:57]}  e6 {[%clk 0:00:57]} 3. Nc3 {[%clk 0:00:57]}  Bb4 {[%clk 0:00:57]} 4. e3 {[%clk 0:00:57]}  O-O {[%clk 0:00:57]} 5. Bd3 {[%clk 0:00:57]}  d5 {[%clk 0:00:57]} 6. Nf3 {[%clk 0:00:57]}  dxc4 {[%clk 0:00:57]} 7. Bxc4 {[%clk 0:00:57]}  c5 {[%clk 0:00:57]} 8. O-O {[%clk 0:00:57]}  Nc6 {[%clk 0:00:57]} 9. dxc5 {[%clk 0:00:57]}  Bxc5 {[%clk 0:00:57]} 10. b3 {[%clk 0:00:57]}  a6 {[%clk 0:00:57]} 11. Bb2 {[%clk 0:00:57]}  b5 {[%clk 0:00:57]} 12. Bd3 {[%clk 0:00:57]}  Nb4 {[%clk 0:00:57]} 13. Bb1 {[%clk 0:00:57]}  Bb7 {[%clk 0:00:57]} 14. a3 {[%clk 0:00:57]}  Nbd5 {[%clk 0:00:57]} 15. Qc2 {[%clk 0:00:57]}  Nxc3 {[%clk 0:00:57]} 16. Bxc3 {[%clk 0:00:57]}  Ne4 {[%clk 0:00:57]} 17. Nd2 {[%clk 0:00:57]}  f5 {[%clk 0:00:57]} 18. Nxe4 {[%clk 0:00:57]}  Bxe4 {[%clk 0:00:57]} 19. Qb2 {[%clk 0:00:57]}  Bb7 {[%clk 0:00:57]} 20. Be5 {[%clk 0:00:57]}  Qd5 {[%clk 0:00:57]} 21. f3 {[%clk 0:00:57]}  Bxe3+ {[%clk 0:00:57]} 22. Kh1 {[%clk 0:00:57]}  Rfd8 {[%clk 0:00:57]} 23. Bxg7 {[%clk 0:00:57]}  Bd4 {[%clk 0:00:57]} 24. Bxd4 {[%clk 0:00:57]}  Qxd4 {[%clk 0:00:57]} 25. Qxd4 {[%clk 0:00:57]}  Rxd4 {[%clk 0:00:57]} 26. Bc2 {[%clk 0:00:57]}  Rc8 {[%clk 0:00:57]} 27. Rfd1 {[%clk 0:00:57]}  Rd5 {[%clk 0:00:57]} 28. Rxd5 {[%clk 0:00:57]}  Bxd5 {[%clk 0:00:57]} 29. Bd1 {[%clk 0:00:57]}  Rc3 {[%clk 0:00:57]} 30. Rb1 {[%clk 0:00:57]}  Kf7 {[%clk 0:00:57]} 31. Kg1 {[%clk 0:00:57]}  Kf6 {[%clk 0:00:57]} 32. Kf2 {[%clk 0:00:57]}  Ke5 {[%clk 0:00:57]} 33. a4 {[%clk 0:00:57]}  b4 {[%clk 0:00:57]} 34. a5 {[%clk 0:00:57]}  Kd4 {[%clk 0:00:57]} 35. Be2 {[%clk 0:00:57]}  Rc2 {[%clk 0:00:57]} 36. Ke1 {[%clk 0:00:57]}  Ra2 {[%clk 0:00:57]} 37. Rd1+ {[%clk 0:00:57]}  Kc3 {[%clk 0:00:57]} 38. Rd3+ {[%clk 0:00:57]}  Kc2 {[%clk 0:00:57]} 39. Rd2+ {[%clk 0:00:57]}  Kxb3 {[%clk 0:00:57]} 40. Rxa2 {[%clk 0:00:57]}  Kxa2 {[%clk 0:00:57]} 41. Bxa6 {[%clk 0:00:57]}  b3 {[%clk 0:00:57]} 42. Kd2 {[%clk 0:00:57]}  b2 {[%clk 0:00:57]} 43. Bd3 {[%clk 0:00:57]}  b1=Q {[%clk 0:00:57]} 44. Bxb1+ {[%clk 0:00:57]}  Kxb1 {[%clk 0:00:57]} 45. a6 {[%clk 0:00:57]}  Kb2 {[%clk 0:00:57]} 46. a7 {[%clk 0:00:57]}  Kb3 {[%clk 0:00:57]} 47. Kd3 {[%clk 0:00:57]}  e5 {[%clk 0:00:57]} 48. g4 {[%clk 0:00:57]}  fxg4 {[%clk 0:00:57]} 49. fxg4 {[%clk 0:00:57]}  Kb4 {[%clk 0:00:57]} 50. g5 {[%clk 0:00:57]}  Kc5 {[%clk 0:00:57]} 51. h4 {[%clk 0:00:57]}  Kd6 {[%clk 0:00:57]} 0-1


[Site "http://www.Chess.com"]

[Event "FIDE World Rapid Chess Championship 2021"]
[White "Maghsoodloo, Parham"]
[Black "Sjugirov, Sanan"]
[WhiteFideId "12539929"]
[BlackFideId "4189302"]
[WhiteElo "2512"]
[BlackElo "2634"]
[Result "1-0"]
[Round "05"]
[TimeControl "900+10"]
[Date "2021.12.26"]
[WhiteClock "0:01:10"]
[BlackClock "0:00:30"]

1. d4 {[%clk 0:01:10]}  d5 {[%clk 0:00:30]} 2. c4 {[%clk 0:01:10]}  e6 {[%clk 0:00:30]} 3. Nc3 {[%clk 0:01:10]}  Nf6 {[%clk 0:00:30]} 4. cxd5 {[%clk 0:01:10]}  exd5 {[%clk 0:00:30]} 5. Bg5 {[%clk 0:01:10]}  c6 {[%clk 0:00:30]} 6. e3 {[%clk 0:01:10]}  h6 {[%clk 0:00:30]} 7. Bh4 {[%clk 0:01:10]}  Be7 {[%clk 0:00:30]} 8. Bd3 {[%clk 0:01:10]}  O-O {[%clk 0:00:30]} 9. Nge2 {[%clk 0:01:10]}  Re8 {[%clk 0:00:30]} 10. Qc2 {[%clk 0:01:10]}  Nbd7 {[%clk 0:00:30]} 11. Rb1 {[%clk 0:01:10]}  Nh5 {[%clk 0:00:30]} 12. Bxe7 {[%clk 0:01:10]}  Qxe7 {[%clk 0:00:30]} 13. b4 {[%clk 0:01:10]}  a6 {[%clk 0:00:30]} 14. a4 {[%clk 0:01:10]}  Nhf6 {[%clk 0:00:30]} 15. O-O {[%clk 0:01:10]}  Nb6 {[%clk 0:00:30]} 16. a5 {[%clk 0:01:10]}  Nbd7 {[%clk 0:00:30]} 17. Ng3 {[%clk 0:01:10]}  Nf8 {[%clk 0:00:30]} 18. Na4 {[%clk 0:01:10]}  h5 {[%clk 0:00:30]} 19. Rfe1 {[%clk 0:01:10]}  h4 {[%clk 0:00:30]} 20. Nf1 {[%clk 0:01:10]}  h3 {[%clk 0:00:30]} 21. g3 {[%clk 0:01:10]}  Ne6 {[%clk 0:00:30]} 22. f3 {[%clk 0:01:10]}  Ng5 {[%clk 0:00:30]} 23. Qf2 {[%clk 0:01:10]}  Be6 {[%clk 0:00:30]} 24. g4 {[%clk 0:01:10]}  Rad8 {[%clk 0:00:30]} 25. Nd2 {[%clk 0:01:10]}  g6 {[%clk 0:00:30]} 26. Qh4 {[%clk 0:01:10]}  Nfh7 {[%clk 0:00:30]} 27. Nc5 {[%clk 0:01:10]}  Bc8 {[%clk 0:00:30]} 28. f4 {[%clk 0:01:10]}  Ne4 {[%clk 0:00:30]} 29. Qxe7 {[%clk 0:01:10]}  Rxe7 {[%clk 0:00:30]} 30. Bxe4 {[%clk 0:01:10]}  dxe4 {[%clk 0:00:30]} 31. g5 {[%clk 0:01:10]}  f6 {[%clk 0:00:30]} 32. gxf6 {[%clk 0:01:10]}  Nxf6 {[%clk 0:00:30]} 33. Kf2 {[%clk 0:01:10]}  Bf5 {[%clk 0:00:30]} 34. Nc4 {[%clk 0:01:10]}  Kg7 {[%clk 0:00:30]} 35. Ne5 {[%clk 0:01:10]}  Nd5 {[%clk 0:00:30]} 36. Rg1 {[%clk 0:01:10]}  Rh8 {[%clk 0:00:30]} 37. Rg5 {[%clk 0:01:10]}  Kf6 {[%clk 0:00:30]} 38. Na4 {[%clk 0:01:10]}  Rg7 {[%clk 0:00:30]} 39. Nb6 {[%clk 0:01:10]}  Nc7 {[%clk 0:00:30]} 40. Rbg1 {[%clk 0:01:10]}  Rhg8 {[%clk 0:00:30]} 41. Ng4+ {[%clk 0:01:10]}  Bxg4 {[%clk 0:00:30]} 42. R1xg4 {[%clk 0:01:10]}  Nb5 {[%clk 0:00:30]} 43. Re5 {[%clk 0:01:10]}  Re7 {[%clk 0:00:30]} 44. Rgg5 {[%clk 0:01:10]}  Nd6 {[%clk 0:00:30]} 45. d5 {[%clk 0:01:10]}  Rxe5 {[%clk 0:00:30]} 46. Rxe5 {[%clk 0:01:10]}  Rd8 {[%clk 0:00:30]} 47. dxc6 {[%clk 0:01:10]}  bxc6 {[%clk 0:00:30]} 48. Rc5 {[%clk 0:01:10]}  Nf5 {[%clk 0:00:30]} 49. Rxc6+ {[%clk 0:01:10]}  Kg7 {[%clk 0:00:30]} 50. Rc7+ {[%clk 0:01:10]}  Kh6 {[%clk 0:00:30]} 51. Rd7 {[%clk 0:01:10]}  Re8 {[%clk 0:00:30]} 52. b5 {[%clk 0:01:10]} 1-0


[Site "http://www.Chess.com"]

[Event "FIDE World Rapid Chess Championship 2021"]
[White "Predke, Alexandr"]
[Black "Erigaisi, Arjun"]
[WhiteFideId "24107581"]
[BlackFideId "35009192"]
[WhiteElo "2630"]
[BlackElo "2397"]
[Result "1-0"]
[Round "05"]
[TimeControl "900+10"]
[Date "2021.12.26"]
[WhiteClock "0:03:44"]
[BlackClock "0:04:55"]

1. d4 {[%clk 0:03:44]}  d5 {[%clk 0:04:55]} 2. c4 {[%clk 0:03:44]}  e6 {[%clk 0:04:55]} 3. Nc3 {[%clk 0:03:44]}  c6 {[%clk 0:04:55]} 4. e4 {[%clk 0:03:44]}  dxe4 {[%clk 0:04:55]} 5. Nxe4 {[%clk 0:03:44]}  Bb4+ {[%clk 0:04:55]} 6. Bd2 {[%clk 0:03:44]}  Qxd4 {[%clk 0:04:55]} 7. Bxb4 {[%clk 0:03:44]}  Qxe4+ {[%clk 0:04:55]} 8. Be2 {[%clk 0:03:44]}  Na6 {[%clk 0:04:55]} 9. Ba5 {[%clk 0:03:44]}  f6 {[%clk 0:04:55]} 10. Nf3 {[%clk 0:03:44]}  b6 {[%clk 0:04:55]} 11. Nd2 {[%clk 0:03:44]}  Qf4 {[%clk 0:04:55]} 12. Bh5+ {[%clk 0:03:44]}  g6 {[%clk 0:04:55]} 13. Bf3 {[%clk 0:03:44]}  Bb7 {[%clk 0:04:55]} 14. Bc3 {[%clk 0:03:44]}  O-O-O {[%clk 0:04:55]} 15. O-O {[%clk 0:03:44]}  Qc7 {[%clk 0:04:55]} 16. a4 {[%clk 0:03:44]}  e5 {[%clk 0:04:55]} 17. b4 {[%clk 0:03:44]}  Ne7 {[%clk 0:04:55]} 18. b5 {[%clk 0:03:44]}  Nc5 {[%clk 0:04:55]} 19. a5 {[%clk 0:03:44]}  cxb5 {[%clk 0:04:55]} 20. axb6 {[%clk 0:03:44]}  axb6 {[%clk 0:04:55]} 21. Ra7 {[%clk 0:03:44]}  Rd3 {[%clk 0:04:55]} 22. Bxb7+ {[%clk 0:03:44]}  Kb8 {[%clk 0:04:55]} 23. Ra8+ {[%clk 0:03:44]}  Kxb7 {[%clk 0:04:55]} 24. Rxh8 {[%clk 0:03:44]}  bxc4 {[%clk 0:04:55]} 25. Qa1 {[%clk 0:03:44]}  Nc8 {[%clk 0:04:55]} 26. Qa3 {[%clk 0:03:44]}  b5 {[%clk 0:04:55]} 27. Rb1 {[%clk 0:03:44]}  Na7 {[%clk 0:04:55]} 28. Nxc4 {[%clk 0:03:44]}  Ne4 {[%clk 0:04:55]} 29. Ra1 {[%clk 0:03:44]} 1-0


[Site "http://www.Chess.com"]

[Event "FIDE World Rapid Chess Championship 2021"]
[White "Shevchenko, Kirill"]
[Black "Santos Latasa, Jaime"]
[WhiteFideId "14129574"]
[BlackFideId "2293307"]
[WhiteElo "2508"]
[BlackElo "2618"]
[Result "1/2-1/2"]
[Round "05"]
[TimeControl "900+10"]
[Date "2021.12.26"]
[WhiteClock "0:00:02"]
[BlackClock "0:05:11"]

1. e4 {[%clk 0:00:02]}  e5 {[%clk 0:05:11]} 2. Nf3 {[%clk 0:00:02]}  Nc6 {[%clk 0:05:11]} 3. Bb5 {[%clk 0:00:02]}  a6 {[%clk 0:05:11]} 4. Ba4 {[%clk 0:00:02]}  Nf6 {[%clk 0:05:11]} 5. O-O {[%clk 0:00:02]}  Be7 {[%clk 0:05:11]} 6. Bxc6 {[%clk 0:00:02]}  dxc6 {[%clk 0:05:11]} 7. d3 {[%clk 0:00:02]}  Nd7 {[%clk 0:05:11]} 8. Nbd2 {[%clk 0:00:02]}  O-O {[%clk 0:05:11]} 9. Nc4 {[%clk 0:00:02]}  f6 {[%clk 0:05:11]} 10. Nh4 {[%clk 0:00:02]}  Nc5 {[%clk 0:05:11]} 11. Nf5 {[%clk 0:00:02]}  Bxf5 {[%clk 0:05:11]} 12. exf5 {[%clk 0:00:02]}  Qd7 {[%clk 0:05:11]} 13. Qf3 {[%clk 0:00:02]}  Qd5 {[%clk 0:05:11]} 14. Qg4 {[%clk 0:00:02]}  Rfe8 {[%clk 0:05:11]} 15. Re1 {[%clk 0:00:02]}  b5 {[%clk 0:05:11]} 16. Nd2 {[%clk 0:00:02]}  a5 {[%clk 0:05:11]} 17. h4 {[%clk 0:00:02]}  Kh8 {[%clk 0:05:11]} 18. h5 {[%clk 0:00:02]}  h6 {[%clk 0:05:11]} 19. Ne4 {[%clk 0:00:02]}  Nxe4 {[%clk 0:05:11]} 20. dxe4 {[%clk 0:00:02]}  Qc4 {[%clk 0:05:11]} 21. Qe2 {[%clk 0:00:02]}  Qxe2 {[%clk 0:05:11]} 22. Rxe2 {[%clk 0:00:02]}  a4 {[%clk 0:05:11]} 23. Be3 {[%clk 0:00:02]}  Red8 {[%clk 0:05:11]} 24. Rc1 {[%clk 0:00:02]}  Kg8 {[%clk 0:05:11]} 25. Kf1 {[%clk 0:00:02]}  Kf7 {[%clk 0:05:11]} 26. Ree1 {[%clk 0:00:02]}  Rab8 {[%clk 0:05:11]} 27. Red1 {[%clk 0:00:02]}  Rxd1+ {[%clk 0:05:11]} 28. Rxd1 {[%clk 0:00:02]}  Ke8 {[%clk 0:05:11]} 29. Ke2 {[%clk 0:00:02]}  c5 {[%clk 0:05:11]} 30. f4 {[%clk 0:00:02]}  Bd6 {[%clk 0:05:11]} 31. Rd5 {[%clk 0:00:02]}  c4 {[%clk 0:05:11]} 32. fxe5 {[%clk 0:00:02]}  Bxe5 {[%clk 0:05:11]} 33. Bd4 {[%clk 0:00:02]}  Bf4 {[%clk 0:05:11]} 34. e5 {[%clk 0:00:02]}  c6 {[%clk 0:05:11]} 35. Rd6 {[%clk 0:00:02]}  c5 {[%clk 0:05:11]} 36. Kf3 {[%clk 0:00:02]}  Bxe5 {[%clk 0:05:11]} 37. Bxe5 {[%clk 0:00:02]}  fxe5 {[%clk 0:05:11]} 38. Rd5 {[%clk 0:00:02]}  a3 {[%clk 0:05:11]} 39. bxa3 {[%clk 0:00:02]}  Ra8 {[%clk 0:05:11]} 40. Ke4 {[%clk 0:00:02]}  Rxa3 {[%clk 0:05:11]} 41. Rxe5+ {[%clk 0:00:02]}  Kf7 {[%clk 0:05:11]} 42. Rxc5 {[%clk 0:00:02]}  Rxa2 {[%clk 0:05:11]} 43. Rxb5 {[%clk 0:00:02]} 1/2-1/2


[Site "http://www.Chess.com"]

[Event "FIDE World Rapid Chess Championship 2021"]
[White "Bellahcene, Bilel"]
[Black "Hovhannisyan, Robert"]
[WhiteFideId "696358"]
[BlackFideId "13302507"]
[WhiteElo "2397"]
[BlackElo "2613"]
[Result "0-1"]
[Round "05"]
[TimeControl "900+10"]
[Date "2021.12.26"]
[WhiteClock "0:00:07"]
[BlackClock "0:08:27"]

1. e4 {[%clk 0:00:07]}  e5 {[%clk 0:08:27]} 2. Nc3 {[%clk 0:00:07]}  Nc6 {[%clk 0:08:27]} 3. g3 {[%clk 0:00:07]}  Bc5 {[%clk 0:08:27]} 4. Bg2 {[%clk 0:00:07]}  d6 {[%clk 0:08:27]} 5. Nge2 {[%clk 0:00:07]}  f5 {[%clk 0:08:27]} 6. Na4 {[%clk 0:00:07]}  Nf6 {[%clk 0:08:27]} 7. exf5 {[%clk 0:00:07]}  Bxf5 {[%clk 0:08:27]} 8. O-O {[%clk 0:00:07]}  Qd7 {[%clk 0:08:27]} 9. d3 {[%clk 0:00:07]}  O-O-O {[%clk 0:08:27]} 10. a3 {[%clk 0:00:07]}  Bh3 {[%clk 0:08:27]} 11. Bg5 {[%clk 0:00:07]}  Bxg2 {[%clk 0:08:27]} 12. Kxg2 {[%clk 0:00:07]}  h6 {[%clk 0:08:27]} 13. Bxf6 {[%clk 0:00:07]}  gxf6 {[%clk 0:08:27]} 14. b4 {[%clk 0:00:07]}  Bb6 {[%clk 0:08:27]} 15. Qd2 {[%clk 0:00:07]}  h5 {[%clk 0:08:27]} 16. Nxb6+ {[%clk 0:00:07]}  axb6 {[%clk 0:08:27]} 17. h4 {[%clk 0:00:07]}  f5 {[%clk 0:08:27]} 18. f4 {[%clk 0:00:07]}  Rhg8 {[%clk 0:08:27]} 19. a4 {[%clk 0:00:07]}  Rg4 {[%clk 0:08:27]} 20. a5 {[%clk 0:00:07]}  bxa5 {[%clk 0:08:27]} 21. bxa5 {[%clk 0:00:07]}  Nd4 {[%clk 0:08:27]} 22. Nxd4 {[%clk 0:00:07]}  exd4 {[%clk 0:08:27]} 23. Rf3 {[%clk 0:00:07]}  Qc6 {[%clk 0:08:27]} 24. Rf1 {[%clk 0:00:07]}  Re8 {[%clk 0:08:27]} 25. Kh3 {[%clk 0:00:07]}  Rg7 {[%clk 0:08:27]} 26. R1f2 {[%clk 0:00:07]}  Rge7 {[%clk 0:08:27]} 27. Qb4 {[%clk 0:00:07]}  Re3 {[%clk 0:08:27]} 0-1


[Site "http://www.Chess.com"]

[Event "FIDE World Rapid Chess Championship 2021"]
[White "Efimenko, Zahar"]
[Black "Van Foreest, Lucas"]
[WhiteFideId "14107201"]
[BlackFideId "1039792"]
[WhiteElo "2609"]
[BlackElo "2374"]
[Result "1-0"]
[Round "05"]
[TimeControl "900+10"]
[Date "2021.12.26"]
[WhiteClock "0:01:32"]
[BlackClock "0:06:14"]

1. Nf3 {[%clk 0:01:32]}  d5 {[%clk 0:06:14]} 2. g3 {[%clk 0:01:32]}  Nf6 {[%clk 0:06:14]} 3. Bg2 {[%clk 0:01:32]}  e6 {[%clk 0:06:14]} 4. O-O {[%clk 0:01:32]}  Be7 {[%clk 0:06:14]} 5. c4 {[%clk 0:01:32]}  O-O {[%clk 0:06:14]} 6. b3 {[%clk 0:01:32]}  d4 {[%clk 0:06:14]} 7. e3 {[%clk 0:01:32]}  c5 {[%clk 0:06:14]} 8. exd4 {[%clk 0:01:32]}  cxd4 {[%clk 0:06:14]} 9. d3 {[%clk 0:01:32]}  Nc6 {[%clk 0:06:14]} 10. Qe2 {[%clk 0:01:32]}  Re8 {[%clk 0:06:14]} 11. Ne5 {[%clk 0:01:32]}  Nxe5 {[%clk 0:06:14]} 12. Qxe5 {[%clk 0:01:32]}  Nd7 {[%clk 0:06:14]} 13. Qe2 {[%clk 0:01:32]}  e5 {[%clk 0:06:14]} 14. Ba3 {[%clk 0:01:32]}  Qc7 {[%clk 0:06:14]} 15. Bxe7 {[%clk 0:01:32]}  Rxe7 {[%clk 0:06:14]} 16. Nd2 {[%clk 0:01:32]}  Nc5 {[%clk 0:06:14]} 17. Ne4 {[%clk 0:01:32]}  Nxe4 {[%clk 0:06:14]} 18. Bxe4 {[%clk 0:01:32]}  f5 {[%clk 0:06:14]} 19. Bg2 {[%clk 0:01:32]}  Bd7 {[%clk 0:06:14]} 20. Bd5+ {[%clk 0:01:32]}  Be6 {[%clk 0:06:14]} 21. Qf3 {[%clk 0:01:32]}  Bxd5 {[%clk 0:06:14]} 22. Qxd5+ {[%clk 0:01:32]}  Kh8 {[%clk 0:06:14]} 23. Rfe1 {[%clk 0:01:32]}  Rd8 {[%clk 0:06:14]} 24. Qf3 {[%clk 0:01:32]}  g6 {[%clk 0:06:14]} 25. Rad1 {[%clk 0:01:32]}  a5 {[%clk 0:06:14]} 26. Re2 {[%clk 0:01:32]}  e4 {[%clk 0:06:14]} 27. dxe4 {[%clk 0:01:32]}  Qe5 {[%clk 0:06:14]} 28. Rde1 {[%clk 0:01:32]}  d3 {[%clk 0:06:14]} 29. Rd2 {[%clk 0:01:32]}  fxe4 {[%clk 0:06:14]} 30. Qe3 {[%clk 0:01:32]}  Qf6 {[%clk 0:06:14]} 31. Qf4 {[%clk 0:01:32]}  Kg7 {[%clk 0:06:14]} 32. Rxe4 {[%clk 0:01:32]}  Qxf4 {[%clk 0:06:14]} 33. Rxe7+ {[%clk 0:01:32]}  Kf6 {[%clk 0:06:14]} 34. gxf4 {[%clk 0:01:32]}  Kxe7 {[%clk 0:06:14]} 35. Kg2 {[%clk 0:01:32]}  Ke6 {[%clk 0:06:14]} 36. Kf3 {[%clk 0:01:32]}  Kf5 {[%clk 0:06:14]} 37. Ke3 {[%clk 0:01:32]}  Kg4 {[%clk 0:06:14]} 38. a3 {[%clk 0:01:32]}  Kh3 {[%clk 0:06:14]} 39. b4 {[%clk 0:01:32]}  axb4 {[%clk 0:06:14]} 40. axb4 {[%clk 0:01:32]}  Kxh2 {[%clk 0:06:14]} 41. c5 {[%clk 0:01:32]}  h5 {[%clk 0:06:14]} 42. Rxd3 {[%clk 0:01:32]}  Re8+ {[%clk 0:06:14]} 43. Kf3 {[%clk 0:01:32]}  Rf8 {[%clk 0:06:14]} 44. Rd5 {[%clk 0:01:32]}  h4 {[%clk 0:06:14]} 45. b5 {[%clk 0:01:32]}  h3 {[%clk 0:06:14]} 46. c6 {[%clk 0:01:32]}  bxc6 {[%clk 0:06:14]} 47. bxc6 {[%clk 0:01:32]}  Rc8 {[%clk 0:06:14]} 48. Rc5 {[%clk 0:01:32]}  g5 {[%clk 0:06:14]} 49. fxg5 {[%clk 0:01:32]}  Rf8+ {[%clk 0:06:14]} 50. Kg4 {[%clk 0:01:32]}  Kg2 {[%clk 0:06:14]} 51. f4 {[%clk 0:01:32]}  h2 {[%clk 0:06:14]} 52. Rc2+ {[%clk 0:01:32]}  Kg1 {[%clk 0:06:14]} 53. Rxh2 {[%clk 0:01:32]}  Kxh2 {[%clk 0:06:14]} 54. g6 {[%clk 0:01:32]}  Rf6 {[%clk 0:06:14]} 55. f5 {[%clk 0:01:32]}  Rxc6 {[%clk 0:06:14]} 56. g7 {[%clk 0:01:32]}  Rc3 {[%clk 0:06:14]} 57. f6 {[%clk 0:01:32]}  Rg3+ {[%clk 0:06:14]} 58. Kh5 {[%clk 0:01:32]}  Kh3 {[%clk 0:06:14]} 59. Kh6 {[%clk 0:01:32]}  Rg4 {[%clk 0:06:14]} 60. f7 {[%clk 0:01:32]} 1-0


[Site "http://www.Chess.com"]